[Event "1st Festival ChessInLyon-GM 2024"]
[Site "Lyon"]
[Date "2024.04.24"]
[Round "4.5"]
[White "Poetsch, Hagen"]
[Black "Fedorchuk, Sergey A."]
[Result "0-1"]
[ECO "C54"]
[WhiteElo "2460"]
[BlackElo "2557"]
[Annotator "TA"]
[PlyCount "78"]
[EventDate "2024.04.23"]
[EventType "tourn"]
[EventCountry "FRA"]
[SourceTitle "playchess.com"]
[Source "ChessBase"]
[SourceQuality "1"]
[TimeControl "40/5400+30:1800+30"]

{[%evp 17,78,0,0,6,20,0,3,0,20,11,21,0,0,0,35,-8,-26,-13,-6,-12,0,0,0,-6,-30,-20,-31,-38,-25,-18,-6,-13,0,0,0,0,0,0,0,0,0,0,0,-87,-86,-85,-97,-189,-200,-189,-194,-210,-200,-237,-181,-691,-167,-426,-183,-547,-525,-741,-723]} 1. e4 {[%emt 0:10:56]} e5 {[%emt 0:00:54]} 2. Nf3 {[%emt 0:00:06]} Nc6 {[%emt 0:00:07]} 3. Bc4 {[%emt 0:01:28]} Bc5 {[%emt 0:00:25]} 4. c3 {[%emt 0:00:16]} Nf6 {[%emt 0:00:31]} 5. d4 {[%emt 0:00:05]} exd4 {[%emt 0:01:12]} 6. e5 {[%emt 0:00:13]} d5 {[%emt 0:02:33]} 7. Bb5 {[%emt 0:00:07]} Ne4 {[%emt 0:00:18]} 8. cxd4 {[%emt 0:00:05]} Bb6 {[%emt 0:00:12]} 9. Nc3 {[%emt 0:00:07]} O-O {[%emt 0:03:12]} 10. Be3 {[%emt 0:00:12]} Bg4 {[%emt 0:02:36]} 11. h3 {[%emt 0:00:32]} Bh5 {[%emt 0:00:10]} 12. Qc2 {[%emt 0:00:19] The position is equal.} Bg6 {[%emt 0:01:22] Threatens to win with ...Nxc3.} 13. Qb3 {[%emt 0:00:07]} Ne7 {[%emt 0:00:09]} 14. O-O {[%emt 0:00:07]} c6 {[%emt 0:00:30] aiming for ...Nxc3.} 15. Bd3 {[%emt 0:00:30]} Nf5 {[%emt 0:03:14][%cal Of5d4]} 16. Rad1 {[%emt 0:10:48]} Nxe3 {[%emt 0:09:26]} 17. fxe3 {[%emt 0:00:26]} Ng3 {[%emt 0:01:34] And now ...Bxd3 would win.} 18. Rfe1 {[%emt 0:05:53]} Bxd3 {[%emt 0:03:25]} 19. Rxd3 {[%emt 0:00:08]} Qe7 {[%emt 0:00:16]} 20. e4 {[%emt 0:13:05]} dxe4 {[%emt 0:07:45]} 21. Nxe4 {[%emt 0:00:07]} Nxe4 {[%emt 0:00:25]} 22. Rxe4 {[%emt 0:00:06][%cal Be1e4,Be4f4,Bf4f1][%mdl 32]} Rad8 {[%emt 0:00:13]} 23. Nd2 {[%emt 0:40:37]} Kh8 {[%emt 0:10:16]} 24. Kh1 {[%emt 0:02:31]} h6 {[%emt 0:11:02]} 25. Nc4 {[%emt 0:01:22]} f5 {[%emt 0:00:22]} 26. Rf4 {[%emt 0:05:57][%cal Oc4d6]} g5 $36 {[%emt 0:10:11][%mdl 2048] Black is pushing.} 27. Rf1 {[%emt 0:00:22]} Bxd4 {[%emt 0:00:16][%cal Oh8g7]} 28. Nd6 {[%emt 0:00:37]} Bb6 {[%emt 0:00:17]} ({Reject} 28... Qxe5 $6 29. Nf7+ (29. Nxb7 Rd5 $17) 29... Rxf7 30. Qxf7 $16) 29. Qc3 {[%emt 0:05:35] e6+ would now be deadly.} Qe6 {[%emt 0:05:28]} 30. Rdf3 {[%emt 0:01:04]} (30. Rfd1 $11) 30... f4 $17 {[%emt 0:03:59]} 31. Nxb7 {[%emt 0:00:06]} Rd5 {[%emt 0:01:46]} 32. Nd6 {[%emt 0:02:02] [#] Repels Rf5} (32. b4 $17) 32... Bd4 $1 $19 {[%emt 0:02:06]} (32... Rxe5 $2 {is the wrong capture.} 33. Nc4 (33. Qxc6 $2 Bc5 $19) 33... Bc7 34. Nxe5 Bxe5 35. Re1 $18) 33. Qa3 {[%emt 0:00:07]} Rxe5 {[%emt 0:06:00]} 34. Nc4 {[%emt 0:00:27] [#]} Ref5 {[%emt 0:00:17]} 35. Qd3 {[%emt 0:00:28]} Rd5 {[%emt 0:01:16][%cal Od4b2] White is weak on the dark squares} 36. Qc2 $2 {[%emt 0:00:45]} (36. Qd2) 36... Re8 $2 {[%emt 0:01:24]} (36... g4 37. Nd2 gxf3 38. Nxf3 Rg8) 37. Rb3 {[%emt 0:00:37]} (37. Rc1) 37... Bg7 {[%emt 0:11:14]} (37... g4 $142 {Strongly threatening ...Rh5.} 38. Qd2 Bg7) 38. Rb7 $2 {[%emt 0:00:25]} (38. Rbf3) 38... g4 {[%emt 0:00:22]} 39. hxg4 {[%emt 0:00:43]} Qxg4 {[%emt 0:00:23] Weighted Error Value: White=0.67/Black=0.34.  Mistake:       	White=5     	Black=1      Inaccurate:     	White=2     	Black=1      OK:         	White=10    	Black=13     Best:        	White=2     	Black=2      Strong:       	---       	Black=1} 0-1

[Event "1st Festival ChessInLyon-GM 2024"]
[Site "Lyon"]
[Date "2024.04.25"]
[Round "5.1"]
[White "Vlachos, Anatole"]
[Black "Droin, Augustin"]
[Result "1-0"]
[ECO "B40"]
[WhiteElo "2482"]
[BlackElo "2478"]
[Annotator "RC"]
[PlyCount "121"]
[EventDate "2024.04.23"]
[EventType "tourn"]
[EventCountry "FRA"]
[SourceTitle "playchess.com"]
[Source "ChessBase"]
[SourceQuality "1"]
[TimeControl "40/5400+30:1800+30"]

1. e4 {[%emt 0:00:02]} c5 {[%emt 0:02:28]} 2. Nf3 {[%emt 0:00:06]} e6 {[%emt 0:00:04]} 3. b3 {[%emt 0:02:20]} a6 {[%emt 0:00:06]} 4. Bb2 {[%emt 0:00:05]} Nc6 {[%emt 0:00:03]} 5. g3 {[%emt 0:01:03]} d5 {[%emt 0:00:03]} 6. exd5 {[%emt 0:00:09]} exd5 {[%emt 0:00:04]} 7. Qe2+ {[%emt 0:00:04]} Qe7 {[%emt 0:00:03]} 8. Qxe7+ {[%emt 0:00:15]} Ngxe7 {[%emt 0:00:04]} 9. Nc3 {[%emt 0:03:19]} Nb4 {[%emt 0:11:45]} 10. O-O-O {[%emt 0:00:09]} Bf5 {[%emt 0:00:13]} 11. d4 {[%emt 0:00:07]} Bxc2 {[%emt 0:02:04]} 12. Rd2 {[%emt 0:00:19]} cxd4 {[%emt 0:09:14]} 13. Nxd4 {[%emt 0:00:12]} Bg6 {[%emt 0:00:14]} 14. a3 {[%emt 0:04:45]} Nbc6 {[%emt 0:00:10]} 15. Bh3 {[%emt 0:00:15]} Kd8 {[%emt 0:05:10]} 16. Nxd5 {[%emt 0:06:11]} Nxd5 {[%emt 0:00:04]} 17. Nf5 {[%emt 0:00:11]} Kc7 {[%emt 0:08:58]} 18. Rxd5 {[%emt 0:00:12]} Rg8 {[%emt 0:00:04]} 19. Rhd1 {[%emt 0:10:09]} Re8 {[%emt 0:00:12]} 20. Nh4 {[%emt 0:02:37]} Be4 {[%emt 0:05:24]} 21. Rd7+ {[%emt 0:03:46]} Kb8 {[%emt 0:00:03]} 22. f3 {[%emt 0:11:00]} g5 {[%emt 0:00:03]} 23. fxe4 {[%emt 0:00:08]} gxh4 {[%emt 0:00:04]} 24. Rxf7 {[%emt 0:01:03]} hxg3 {[%emt 0:07:04]} 25. hxg3 {[%emt 0:00:10]} Bh6+ {[%emt 0:08:07]} 26. Kb1 {[%emt 0:00:53]} Rxe4 {[%emt 0:07:08]} 27. Rxh7 {[%emt 0:00:45]} Bg5 {[%emt 0:01:51]} 28. Bg2 {[%emt 0:04:12]} Re2 {[%emt 0:05:20]} 29. Bf1 {[%emt 0:07:24]} Re3 {[%emt 0:03:35]} 30. Bc4 {[%emt 0:00:07]} Rd8 {[%emt 0:00:17]} 31. Rxd8+ {[%emt 0:02:17]} Bxd8 {[%emt 0:00:03]} 32. Bc1 {[%emt 0:12:34]} Re1 {[%emt 0:00:15]} 33. Rf7 {[%emt 0:00:17]} b5 {[%emt 0:26:43]} 34. Rf1 {[%emt 0:02:32]} Rxc1+ {[%emt 0:00:00]} 35. Rxc1 {[%emt 0:00:29]} bxc4 {[%emt 0:00:00]} 36. Rxc4 {[%emt 0:00:05]} Kc7 {[%emt 0:00:00]} 37. Kc2 {[%emt 0:01:40]} a5 {[%emt 0:00:00]} 38. Kd3 {[%emt 0:01:18]} Kd6 {[%emt 0:00:00]} 39. Ke4 {[%emt 0:01:16]} Bb6 {[%emt 0:00:00]} 40. Rc2 {[%emt 0:13:09]} Bc5 {[%emt 0:00:00]} 41. a4 {[%emt 0:33:01]} Bb4 {[%emt 0:18:00]} 42. g4 {[%emt 0:00:14]} Ne5 {[%emt 0:00:09]} 43. g5 {[%emt 0:01:03]} Ke6 {[%emt 0:02:02]} 44. Rc7 {[%emt 0:04:49]} Ng6 {[%emt 0:05:41]} 45. Rc6+ {[%emt 0:01:57]} Kf7 {[%emt 0:00:03]} 46. Rf6+ {[%emt 0:00:55]} Kg7 {[%emt 0:00:03]} 47. Kf5 {[%emt 0:01:23]} Nh4+ {[%emt 0:02:47]} 48. Kg4 {[%emt 0:00:49]} Ng6 {[%emt 0:00:05]} 49. Kh5 {[%emt 0:00:13]} Ne7 {[%emt 0:00:04]} 50. Rf3 {[%emt 0:02:05]} Ng6 {[%emt 0:00:31]} 51. Rf6 {[%emt 0:01:06]} Ne7 {[%emt 0:00:06]} 52. Rb6 {[%emt 0:00:39]} Kh7 {[%emt 0:04:38]} 53. Rh6+ {[%emt 0:00:00]} Kg7 {[%emt 0:00:00]} 54. g6 {[%emt 0:00:00]} Nf5 {[%emt 0:00:00]} 55. Rh7+ {[%emt 0:00:00]} Kg8 {[%emt 0:00:00]} 56. Rd7 {[%emt 0:00:00]} Nd6 {[%emt 0:00:00]} 57. Kg5 {[%emt 0:00:00]} Ne4+ {[%emt 0:00:00]} 58. Kf5 {[%emt 0:00:00]} Ng3+ {[%emt 0:00:00]} 59. Ke6 {[%emt 0:00:00]} Ne4 {[%emt 0:00:00]} 60. Rc7 {[%emt 0:00:00]} Kf8 {[%emt 0:00:00]} 61. g7+ {[%emt 0:00:00]} 1-0

[Event "1st Festival ChessInLyon-GM 2024"]
[Site "Lyon"]
[Date "2024.04.25"]
[Round "5.2"]
[White "Gatineau, Yovann"]
[Black "Boyer, Mahel"]
[Result "1/2-1/2"]
[ECO "A46"]
[WhiteElo "2408"]
[BlackElo "2432"]
[Annotator "TA"]
[PlyCount "52"]
[EventDate "2024.04.23"]
[EventType "tourn"]
[EventCountry "FRA"]
[SourceTitle "playchess.com"]
[Source "ChessBase"]
[SourceQuality "1"]
[TimeControl "40/5400+30:1800+30"]

{[%evp 9,52,39,35,33,32,23,27,27,30,18,16,14,23,16,29,19,25,14,85,38,27,22,11,0,3,2,4,1,2,0,0,-13,0,-15,-10,-5,0,-15,0,-13,-11,-17,0,0,0]} 1. d4 {[%emt 0:00:40]} e6 {[%emt 0:01:27]} 2. Nf3 {[%emt 0:02:33]} Nf6 {[%emt 0:06:26]} 3. Bf4 {[%emt 0:07:08]} d6 {[%emt 0:07:14]} 4. Nc3 {[%emt 0:05:43]} Nc6 {[%emt 0:04:52]} 5. e4 {[%emt 0:01:25]} Be7 {[%emt 0:00:24]} 6. Bd3 {[%emt 0:03:47]} O-O {[%emt 0:00:47][%cal Oc6d4]} 7. O-O {[%emt 0:01:30]} Nxd4 {[%emt 0:02:09]} 8. Nxd4 {[%emt 0:00:10] [#] And now e5 would win. White has an edge.} e5 {[%emt 0:00:02]} 9. Be3 {[%emt 0:02:33]} exd4 {[%emt 0:00:05]} 10. Bxd4 {[%emt 0:00:09]} Be6 {[%emt 0:00:47]} 11. Nd5 {[%emt 0:05:26]} Bxd5 {[%emt 0:01:32]} 12. exd5 {[%emt 0:01:52]} Nd7 {[%emt 0:00:02] Black is weak on the light squares} 13. Bf5 {[%emt 0:12:00][%cal Od4g7] This pair of bishops is nice.} Nb6 {[%emt 0:06:44] [#]} (13... Bf6 $11) 14. a4 {[%emt 0:12:06] White has more active pieces.} (14. Bxg7 $1 $16 Kxg7 15. Qd4+ Kh6 16. Qe3+ Kg7 17. Qg3+ Kh6 18. Qh3+ Kg7 (18... Bh4 $2 19. Rae1 $18) 19. Qg3+ (19. Qxh7+ Kf6 $16) 19... Kh8 20. Qh3) 14... Bf6 $14 {[%emt 0:00:57]} 15. a5 {[%emt 0:08:44]} Nxd5 {[%emt 0:01:17] The position is equal.} 16. Bxh7+ {[%emt 0:05:25]} Kxh7 {[%emt 0:00:22]} 17. Qh5+ {[%emt 0:00:57]} Kg8 {[%emt 0:00:37]} 18. Qxd5 {[%emt 0:01:00]} c6 {[%emt 0:00:29]} 19. Qc4 {[%emt 0:00:14]} Re8 {[%emt 0:01:14]} 20. a6 {[%emt 0:04:07] Bxf6 would now be deadly.} d5 {[%emt 0:01:05]} 21. Qc3 {[%emt 0:06:54] Threatens to win with Bxf6.} Bxd4 {[%emt 0:00:04]} 22. Qxd4 {[%emt 0:00:08]} b6 {[%emt 0:00:03]} 23. Rfe1 {[%emt 0:00:57]} Qd7 {[%emt 0:00:12]} 24. h3 {[%emt 0:01:41]} c5 {[%emt 0:00:22]} 25. Qd3 {[%emt 0:01:01]} Qc6 {[%emt 0:00:27]} 26. c3 {[%emt 0:02:11]} Rad8 {[%emt 0:01:04] Weighted Error Value: White=0.08 (flawless) /Black=0.10 (very precise) .  Mistake:       	White=1     	Black=1      OK:         	White=3     	Black=9      Best:        	White=2     	Black=1} 1/2-1/2

[Event "1st Festival ChessInLyon-GM 2024"]
[Site "Lyon"]
[Date "2024.04.25"]
[Round "5.3"]
[White "Tahay, Alexis"]
[Black "Poetsch, Hagen"]
[Result "1-0"]
[ECO "B68"]
[WhiteElo "2382"]
[BlackElo "2460"]
[Annotator "TA"]
[PlyCount "77"]
[EventDate "2024.04.23"]
[EventType "tourn"]
[EventCountry "FRA"]
[SourceTitle "playchess.com"]
[Source "ChessBase"]
[SourceQuality "1"]
[TimeControl "40/5400+30:1800+30"]

{[%evp 21,76,20,48,50,109,102,94,72,90,71,86,90,111,111,120,127,121,99,106,94,104,91,139,144,155,158,146,84,95,70,133,129,123,130,256,244,509,512,660,627,757,745,771,766,757,686,640,548,650,646,636,612,997,807,2789,2739,29999]} 1. e4 {[%emt 0:00:02]} c5 {[%emt 0:00:06]} 2. Nf3 {[%emt 0:00:04]} d6 {[%emt 0:00:06]} 3. d4 {[%emt 0:00:27]} cxd4 {[%emt 0:00:05]} 4. Nxd4 {[%emt 0:00:03]} Nf6 {[%emt 0:00:08]} 5. Nc3 {[%emt 0:00:02]} Nc6 {[%emt 0:00:05]} 6. Bg5 {[%emt 0:00:56]} e6 {[%emt 0:00:07]} 7. Qd2 {[%emt 0:00:03]} a6 {[%emt 0:00:05]} 8. O-O-O {[%emt 0:00:04]} Bd7 {[%emt 0:00:04]} 9. f4 {[%emt 0:00:14]} Be7 {[%emt 0:00:32]} 10. Be2 {[%emt 0:00:05]} b5 {[%emt 0:05:11]} 11. Bxf6 {[%emt 0:01:49]} gxf6 {[%emt 0:06:32]} 12. f5 {[%emt 0:00:45] And now fxe6 would win.} h5 {[%emt 0:03:01]} (12... Nxd4 $14 13. Qxd4 Qa5) 13. fxe6 {[%emt 0:05:43]} fxe6 {[%emt 0:00:06]} 14. Nxc6 {[%emt 0:00:02] White is better.} Bxc6 {[%emt 0:00:09] [#]} 15. Bf3 $1 {[%emt 0:00:02]} Qa5 {[%emt 0:10:59]} 16. Kb1 {[%emt 0:03:34]} O-O-O {[%emt 0:01:18]} 17. Qe3 {[%emt 0:03:47][%cal Oc3d5]} Kb7 {[%emt 0:13:52]} 18. Ne2 {[%emt 0:09:48][%cal Bc3e2,Be2g3,Bg3f5][%mdl 32]} e5 {[%emt 0:07:44]} 19. Ng3 {[%emt 0:00:29]} Be8 {[%emt 0:13:37]} 20. Nf5 {[%emt 0:02:36]} Bf8 {[%emt 0:00:56]} 21. Rd3 {[%emt 0:02:40]} Rh7 {[%emt 0:02:46]} (21... Bf7 $142 22. a3 Qb6) 22. Rhd1 $16 {[%emt 0:01:41]} Rhd7 {[%emt 0:00:07]} 23. Qe2 {[%emt 0:00:57]} Bf7 {[%emt 0:00:49] [#]} 24. b3 {[%emt 0:02:07] Active counter play!} (24. Bxh5 $2 {perishes.} Qxa2+ 25. Kc1 Bc4 $19) ({White should try} 24. a3 $1) 24... Qb6 {[%emt 0:08:37][%cal Of7c4]} 25. R3d2 {[%emt 0:02:58]} h4 {[%emt 0:02:08]} 26. Qe1 $36 {[%emt 0:02:03][%mdl 2048] White is in control.} h3 {[%emt 0:01:56]} 27. gxh3 {[%emt 0:02:50]} d5 {[%emt 0:01:21]} (27... Bg6 $16 {was necessary.} 28. Qg3 Bh7) 28. exd5 $18 {[%emt 0:00:15][%cal Be4d5,Bd5d6][%mdl 32] d6+ would now be deadly.} Bb4 {[%emt 0:00:14]} (28... Bd6 29. Rg2 Bg8) 29. d6+ {[%emt 0:00:15]} Ka7 {[%emt 0:00:06][%cal Of7e6] [#]} 30. Ne7 $1 {[%emt 0:03:24] Black must now prevent Nc6+.} Bxd2 {[%emt 0:18:27]} (30... Qc5 31. Nc6+) 31. Rxd2 {[%emt 0:00:12] Hoping for Nc6+.} a5 {[%emt 0:00:05][%cal Ba6a5,Ba5a4][%mdl 32]} 32. Nc6+ {[%emt 0:00:36]} Ka6 {[%emt 0:00:04]} 33. Nxd8 {[%emt 0:00:18]} Rxd8 {[%emt 0:00:17]} 34. Qe4 {[%emt 0:03:18] d7 is the strong threat.} Be6 {[%emt 0:00:57]} 35. h4 {[%emt 0:01:57][%cal Bh3h4,Bh4h5,Bh5h6][%mdl 32]} a4 {[%emt 0:00:25]} 36. h5 {[%emt 0:03:27]} a3 {[%emt 0:00:28]} 37. h6 {[%emt 0:01:55][%cal Od6d7] Threatens to win with d7!} Qc5 {[%emt 0:01:11]} 38. b4 {[%emt 0:06:02][%csl Gf3][%cal Re4b7]} Qc3 {[%emt 0:00:35]} 39. Qb7# {[%emt 0:00:07] Weighted Error Value: White=0.10 (very precise) /Black=0.47.  Mistake:       	White=1     	Black=5      OK:         	White=7     	Black=6      Best:        	White=3     	Black=1      Strong:       	White=1     	---} 1-0

[Event "1st Festival ChessInLyon-GM 2024"]
[Site "Lyon"]
[Date "2024.04.25"]
[Round "5.4"]
[White "Fedorchuk, Sergey A."]
[Black "Shyaamnikhil P"]
[Result "0-1"]
[ECO "C54"]
[WhiteElo "2557"]
[BlackElo "2390"]
[Annotator "TA"]
[PlyCount "114"]
[EventDate "2024.04.23"]
[EventType "tourn"]
[EventCountry "FRA"]
[SourceTitle "playchess.com"]
[Source "ChessBase"]
[SourceQuality "1"]
[TimeControl "40/5400+30:1800+30"]

{[%evp 27,114,44,49,56,42,42,50,50,44,44,51,37,41,48,53,67,52,2,5,-15,0,-12,0,0,0,0,0,-44,-53,-140,-154,-149,-134,-270,-262,-704,-746,-746,-749,-845,-795,-738,-473,-977,-981,-926,-890,-802,-410,-397,-347,-389,-360,-404,-410,-377,-397,-486,-460,-1450,-955,-910,-893,-834,-760,-1305,-1256,-1456,-958,-1747,-713,-920,-865,-12827,-5259,-12842,-12832,-29975,-29976,-29976,-29977,-29980,-29981,-29981,-29982,-29982,-29983,-29983,-29983]} 1. e4 {[%emt 0:00:46]} e5 {[%emt 0:00:26]} 2. Nf3 {[%emt 0:01:02]} Nc6 {[%emt 0:00:09]} 3. Bc4 {[%emt 0:01:50]} Nf6 {[%emt 0:00:17]} 4. d3 {[%emt 0:00:13]} Bc5 {[%emt 0:04:42]} 5. O-O {[%emt 0:02:36]} d6 {[%emt 0:01:33]} 6. c3 {[%emt 0:03:03]} O-O {[%emt 0:01:56]} 7. h3 {[%emt 0:03:47]} h6 {[%emt 0:07:07] 7...h6 has become a bit dusty these days.} 8. Re1 {[%emt 0:02:46]} a5 {[%emt 0:01:57] C54: Giuoco Piano: 4 c3 Nf6, main lines with 5 d4 and 5 d3.} 9. Nbd2 {[%emt 0:02:41]} Rb8 {[%emt 0:12:37]} 10. Bb5 $146 {[%emt 0:11:45]} ({Predecessor:} 10. a4 Qe7 11. Bb3 Be6 12. Bc2 Qd7 13. Nf1 d5 14. exd5 Qxd5 15. Ne3 Bxe3 16. Bxe3 {½-½ Filgueiras,N (2323)-De Rossi,P (2096) Araraquara op 2nd 2024 (7)}) 10... Ba7 {[%emt 0:12:54]} 11. Nf1 {[%emt 0:08:47]} Ne7 {[%emt 0:03:55]} 12. Ng3 {[%emt 0:01:05]} Ng6 {[%emt 0:04:15]} 13. d4 {[%emt 0:03:25]} c6 {[%emt 0:00:29]} 14. Bd3 {[%emt 0:00:52]} Re8 {[%emt 0:02:03]} 15. Be3 {[%emt 0:04:00]} Bb6 {[%emt 0:07:46]} 16. Qc2 {[%emt 0:03:19]} Bc7 {[%emt 0:07:56]} 17. Rad1 {[%emt 0:01:54]} Bd7 {[%emt 0:04:57]} 18. a3 {[%emt 0:08:52]} b5 {[%emt 0:04:47]} 19. b4 {[%emt 0:00:31]} Qc8 {[%emt 0:01:45]} 20. Qc1 {[%emt 0:04:21]} Kh7 {[%emt 0:00:39]} 21. Bc2 {[%emt 0:02:14]} Ra8 {[%emt 0:02:38]} 22. Rd2 {[%emt 0:14:47]} (22. dxe5 $14 dxe5 23. Nf5 Bxf5 24. exf5) 22... Be6 {[%emt 0:01:23]} 23. Qd1 {[%emt 0:02:55]} axb4 {[%emt 0:01:59]} 24. axb4 {[%emt 0:14:59]} Ra3 {[%emt 0:03:35]} 25. d5 {[%emt 0:00:00]} Bd7 $1 {[%emt 0:00:56]} 26. dxc6 {[%emt 0:00:00]} Bxc6 {[%emt 0:00:11]} 27. Bb3 {[%emt 0:00:00]} Rf8 {[%emt 0:00:19]} 28. Nh2 {[%emt 0:00:00]} (28. Ra2 $15 Rxa2 29. Bxa2) 28... Nxe4 $17 {[%emt 0:02:57]} ({Reject} 28... Bxe4 $6 29. Ng4 Nxg4 30. hxg4 $11) 29. Nxe4 {[%emt 0:00:00]} Bxe4 {[%emt 0:00:05]} 30. Bxh6 {[%emt 0:00:00]} (30. Bc2 $17 Bc6 31. Qh5) 30... Bxg2 $19 {[%emt 0:00:36]} 31. Bxg7 $2 {[%emt 0:00:46]} (31. Kxg2 Kxh6 (31... gxh6 $2 32. Kh1 $19) 32. Ng4+ Kh7 33. Rg1) 31... Kxg7 $19 {[%emt 0:00:22]} 32. Kxg2 {[%emt 0:00:10]} Rh8 {[%emt 0:00:43]} 33. Re3 {[%emt 0:01:58]} Nf4+ {[%emt 0:00:22]} 34. Kg1 {[%emt 0:01:34]} Rxh3 {[%emt 0:00:41]} 35. Rg3+ {[%emt 0:00:29]} (35. Bc2 $142) 35... Rxg3+ $19 {[%emt 0:00:38]} 36. fxg3 {[%emt 0:00:00]} Bb6+ {[%emt 0:00:13]} 37. Kh1 {[%emt 0:00:08]} Qa8+ {[%emt 0:00:08]} 38. Qf3 {[%emt 0:00:45]} Qxf3+ {[%emt 0:06:08]} 39. Nxf3 {[%emt 0:00:01]} Rxb3 {[%emt 0:00:19]} 40. gxf4 {[%emt 0:00:03]} Rxc3 {[%emt 0:00:09]} 41. Kg2 {[%emt 0:31:32]} e4 {[%emt 0:33:55]} ({Weaker is} 41... exf4 42. Rxd6 Bc7 43. Rd5 $15) 42. Nd4 {[%emt 0:00:07]} e3 {[%emt 0:00:00]} 43. Nxb5 {[%emt 0:00:00]} (43. Rd1 $142 Bxd4 44. Rxd4) 43... Rc1 {[%emt 0:00:00]} (43... exd2 44. Nxc3 Bd4 45. Nd1 $19) 44. Ra2 {[%emt 0:00:00]} d5 {[%emt 0:00:00]} 45. Nd6 {[%emt 0:00:00]} Kf6 {[%emt 0:00:00]} 46. Kf3 {[%emt 0:00:00]} Rf1+ {[%emt 0:00:00]} 47. Kg3 {[%emt 0:00:00]} Ke6 {[%emt 0:00:00]} 48. Nb5 {[%emt 0:00:00]} Kd7 {[%emt 0:00:00]} (48... d4 $142 49. Kg2 Rxf4) 49. Nc3 {[%emt 0:00:00]} d4 {[%emt 0:00:00]} 50. Kg2 {[%emt 0:00:00]} Rc1 {[%emt 0:00:00]} 51. Na4 {[%emt 0:00:00]} Kc6 {[%emt 0:00:00]} 52. Nxb6 {[%emt 0:00:00]} Kxb6 {[%emt 0:00:00]} 53. Kf3 {[%emt 0:00:00]} Rf1+ {[%emt 0:00:00]} 54. Ke4 {[%emt 0:00:00]} Rf2 {[%emt 0:00:00]} 55. Ra1 {[%emt 0:00:00] [#]} Rd2 $1 {[%emt 0:00:00]} 56. Kf3 {[%emt 0:00:00]} e2 {[%emt 0:00:00]} 57. Rh1 {[%emt 0:00:00]} d3 {[%emt 0:00:00]} 0-1

[Event "1st Festival ChessInLyon-GM 2024"]
[Site "Lyon"]
[Date "2024.04.25"]
[Round "5.5"]
[White "Pourramezanali, Amirreza"]
[Black "Crut, Aurelien"]
[Result "1-0"]
[ECO "D46"]
[WhiteElo "2502"]
[BlackElo "2312"]
[Annotator "TA"]
[PlyCount "47"]
[EventDate "2024.04.23"]
[EventType "tourn"]
[EventCountry "FRA"]
[SourceTitle "playchess.com"]
[Source "ChessBase"]
[SourceQuality "1"]
[TimeControl "40/5400+30:1800+30"]

{[%evp 21,47,44,23,8,66,70,75,54,92,86,237,241,290,292,267,169,378,369,333,286,630,654,652,653,1385,1402,1286,1278]} 1. d4 {[%emt 0:00:03]} d5 {[%emt 0:00:09]} 2. c4 {[%emt 0:00:07]} e6 {[%emt 0:00:06]} 3. Nf3 {[%emt 0:00:06]} Nf6 {[%emt 0:00:15]} 4. e3 {[%emt 0:00:05]} c6 {[%emt 0:00:19]} 5. Bd3 {[%emt 0:00:07]} Nbd7 {[%emt 0:02:18]} 6. O-O {[%emt 0:00:07]} Bd6 {[%emt 0:00:23]} 7. Nc3 {[%emt 0:00:06]} O-O {[%emt 0:00:42]} 8. e4 {[%emt 0:00:07]} dxe4 {[%emt 0:07:38]} 9. Nxe4 {[%emt 0:00:07]} Nxe4 {[%emt 0:00:08]} 10. Bxe4 {[%emt 0:00:04]} c5 {[%emt 0:04:22]} 11. Bc2 {[%emt 0:10:15]} Qc7 {[%emt 0:31:18]} 12. Re1 {[%emt 0:14:09]} b6 {[%emt 0:13:24]} (12... Rd8 $11) 13. Qd3 $14 {[%emt 0:00:50][%csl Gc2][%cal Rd3h7] [#]} g6 {[%emt 0:05:34]} 14. Bh6 {[%emt 0:00:06] White is better.} Re8 {[%emt 0:03:57]} 15. Rad1 {[%emt 0:02:35] White is more active.} Nf6 $2 {[%emt 0:06:22] [#]} (15... Bf8 $16 16. Bxf8 Rxf8) 16. dxc5 $1 $18 {[%emt 0:05:28]} Bxc5 {[%emt 0:01:04]} 17. Qc3 {[%emt 0:01:13]} Be7 {[%emt 0:04:57]} (17... Bxf2+ 18. Kf1 Qe7 (18... Bxe1 19. Qxf6 Qxc4+ 20. Rd3) 19. Re2 (19. Kxf2 Ng4+ 20. Kg1 Nxh6 $14)) 18. Ne5 {[%emt 0:23:50] And now Qg3 would win.} Rd8 $2 {[%emt 0:06:42]} (18... Bb7 {keeps fighting.} 19. Nd7 e5 (19... Qc6 $2 20. Be4 $18)) 19. Rxd8+ {[%emt 0:21:52]} Bxd8 {[%emt 0:00:05]} 20. Nc6 {[%emt 0:01:09]} Nh5 $2 {[%emt 0:07:56]} (20... Qxc6 21. Be4 Qd6) 21. Nxd8 {[%emt 0:01:01] White is clearly winning.} Qxd8 {[%emt 0:00:03] Black is weak on the dark squares} 22. Rd1 {[%emt 0:01:40]} Qe7 {[%emt 0:00:42]} 23. Qa3 {[%emt 0:01:19]} Qe8 {[%emt 0:00:53]} 24. Ba4 {[%emt 0:00:11] White took control after the opening.   Weighted Error Value: White=0.17 (very precise) /Black=0.96.  Mistake:       	---       	Black=4      Inaccurate:     	White=1     	Black=1      OK:         	White=5     	Black=2      Best:        	White=1     	---        Strong:       	White=1     	---} 1-0